bitfinex/quotes_SOLUSD_20240808
["timestamp","ask_amount","ask_price","bid_price","bid_amount"]
[1723133127743,6.1712,162.05,161.86,20.0]
[1723133127941,1.54352389,162.04,161.86,20.0]
[1723133128252,49.89352389,162.04,161.85,15.137]
[1723133128628,6.1733,161.99,161.85,15.137]
[1723133128833,48.35,162.08,161.85,15.137]
[1723133129125,6.45019682,162.11,161.86,48.35]
[1723133129347,48.35,162.08,161.85,15.137]
[1723133129658,48.35,161.91,161.6,6.5657]
[1723133129847,1.54531898,161.99,161.72,6.5657]
[1723133130054,22.9077,162.03,161.73,15.2181]
[1723133130055,48.35,161.95,161.73,15.2181]
[1723133130229,48.35,161.91,161.73,15.2181]
[1723133130427,1.54493941,161.9,161.73,15.2181]
[1723133130634,1.54519301,161.89,161.73,15.2181]
[1723133130828,6.1785,161.86,161.72,6.5657]
[1723133131027,45.0,161.85,161.72,6.5657]
[1723133131255,45.0,161.86,161.72,6.5657]
[1723133131430,7.72393779,161.85,161.72,6.5657]
[1723133131763,45.0,161.84,161.72,6.5657]
[1723133131964,6.1806,161.8,161.68,0.35128063]
[1723133132157,94.89603197,161.79,161.68,0.35128063]
[1723133132329,45.0,161.78,161.68,0.35128063]
[1723133133634,1.54553527,161.77,161.68,0.35128063]
[1723133133936,45.0,161.78,161.68,0.35128063]
[1723133135143,1.54588137,161.77,161.68,0.35128063]
[1723133135341,45.0,161.78,161.68,0.35128063]
[1723133135549,48.35,161.84,161.68,0.35128063]
[1723133135763,1.54568643,161.83,161.68,0.35128063]
[1723133135931,48.35,161.84,161.68,0.35128063]
[1723133136137,6.1821,161.76,161.68,0.35128063]
[1723133136339,48.35,161.8,161.68,0.35128063]
[1723133136552,6.1816,161.77,161.68,0.35128063]
[1723133136752,51.182,161.76,161.68,0.35128063]
[1723133136983,1.54630846,161.75,161.68,0.35128063]
[1723133137347,48.35,161.71,161.68,0.35128063]
[1723133137558,6.1847,161.69,161.5,1.0496537]
[1723133137772,46.54699315,161.68,161.5,1.0496537]
[1723133137975,1.54703777,161.67,161.5,1.0496537]
[1723133138354,93.35,161.68,161.5,1.0496537]
[1723133138355,45.0,161.68,161.5,1.0496537]
[1723133138562,30.0,161.7,161.55,48.35]
[1723133138763,48.35,161.84,161.57,15.0479]
[1723133139080,1.54583101,161.83,161.57,15.0479]
[1723133139246,8.00131014,161.82,161.58,48.35]
[1723133139649,6.45563664,161.82,161.59,20.0]
[1723133139847,48.35,161.88,161.59,40.0]
[1723133140057,1.54520292,161.87,161.6,48.35]
[1723133140288,1.54520292,161.87,161.61,20.0]
[1723133140289,48.35,161.85,161.61,20.0]
[1723133140576,1.54571018,161.84,161.61,20.0]
[1723133140786,1.54571018,161.84,161.57,15.0479]
[1723133140787,6.1798,161.82,161.58,20.0]
[1723133141073,49.89575118,161.81,161.57,15.0479]
[1723133141276,6.1817,161.77,161.57,15.0479]
[1723133141446,49.89575118,161.81,161.57,15.0479]
[1723133141654,6.1824,161.75,161.57,15.0479]
[1723133141956,45.0,161.74,161.57,15.0479]
[1723133142160,46.54627113,161.74,161.57,15.0479]
[1723133142348,45.0,161.73,161.57,15.0479]
[1723133142555,48.35,161.71,161.57,15.0479]
[1723133142882,46.54693008,161.7,161.56,6.0871]
[1723133143049,6.1854,161.67,161.56,6.0871]
[1723133143253,48.35,161.71,161.56,6.0871]
[1723133143254,45.0,161.66,161.56,6.0871]
[1723133143452,45.0,161.66,161.5,1.0496537]
[1723133143453,1.54741941,161.65,161.5,1.0496537]
[1723133143679,45.0,161.66,161.5,1.0496537]
[1723133144269,48.35,161.75,161.5,1.0496537]
[1723133144661,54.5327,161.75,161.5,1.0496537]
[1723133144884,1.5464894,161.74,161.5,1.0496537]
[1723133145083,1.5464894,161.74,161.5,66.0496537]
[1723133145282,48.35,161.75,161.5,66.0496537]
[1723133145482,1.54592319,161.74,161.5,69.3996537]
[1723133145691,1.54592319,161.74,161.5,21.0496537]
[1723133146004,48.35,161.71,161.5,1.0496537]
[1723133146294,1.547016,161.7,161.5,1.0496537]
[1723133146586,48.35,161.71,161.5,1.0496537]
[1723133146795,46.54698186,161.7,161.5,1.0496537]
[1723133146964,45.0,161.7,161.49,15.5952537]
[1723133147169,1.546511,161.74,161.49,15.5952537]
[1723133147500,1.54642253,161.74,161.49,15.5952537]
[1723133147704,6.1863,161.65,161.49,15.5952537]
[1723133147873,48.35,161.68,161.49,15.5952537]
[1723133148406,1.5471373,161.67,161.49,15.5952537]
[1723133148573,6.1871,161.63,161.49,15.5952537]
[1723133148905,6.1881,161.6,161.48,6.3226]
[1723133149113,46.54751916,161.62,161.48,6.3226]
[1723133149114,6.1894,161.57,161.48,6.3226]
[1723133149411,48.35,161.55,161.37,6.1297]
[1723133149567,6.1909,161.53,161.37,6.1297]
[1723133149761,45.0,161.52,161.37,6.1297]
[1723133150364,1.54828734,161.51,161.37,6.1297]
[1723133151393,1.54828734,161.51,161.35,16.5888]
[1723133151394,6.1932,161.47,161.35,16.5888]
[1723133151595,51.1935,161.46,161.3,7.4474537]
[1723133151815,6.1938,161.45,161.3,7.4474537]
[1723133152100,46.54910622,161.46,161.3,7.4474537]
[1723133152101,52.74367478,161.44,161.3,7.4474537]
[1723133152295,45.0,161.43,161.3,7.4474537]
[1723133152870,1.54941828,161.42,161.3,1.0496537]
[1723133153092,1.5497917,161.42,161.3,1.0496537]
[1723133153299,1.54985216,161.42,161.3,1.0496537]
[1723133153468,46.54944835,161.43,161.3,1.0496537]
[1723133153796,1.54944835,161.42,161.3,1.0496537]
[1723133154013,48.35,161.36,161.3,1.0496537]
[1723133154189,46.55040391,161.35,161.3,1.0496537]
[1723133154387,46.55040391,161.35,161.18,15.4612]
[1723133154696,48.35,161.32,161.18,15.4612]
[1723133154898,46.55051654,161.31,161.18,15.4612]
[1723133155414,45.0,161.31,161.18,15.4612]
[1723133155585,45.0,161.31,161.15,6.4791]
[1723133156633,30.0,161.3,161.06,9.6609161]
[1723133156831,45.0,161.29,161.11,21.6365]
[1723133157192,6.2015,161.26,161.11,21.6365]
[1723133157398,45.0,161.25,161.11,21.6365]
[1723133157618,48.35,161.36,161.11,21.6365]
[1723133157920,6.1977,161.35,161.11,21.6365]
[1723133158129,48.35,161.36,161.11,69.9865]
[1723133158296,48.35,161.4,161.11,109.9865]
[1723133158622,63.6504,161.44,161.19,48.35]
[1723133158832,48.35,161.48,161.23,48.35]
[1723133158997,54.81921203,161.52,161.25,15.2667]
[1723133159197,6.1937,161.46,161.26,20.0]
[1723133159392,70.29771203,161.52,161.26,20.0]
[1723133159745,6.1919,161.5,161.26,20.0]
[1723133160022,1.54885752,161.49,161.27,48.35]
[1723133160223,1.54885752,161.49,161.28,20.0]
[1723133160526,6.46921203,161.52,161.28,20.0]
[1723133160716,48.35,161.6,161.32,6.1845]
[1723133160914,6.1903,161.55,161.33,20.0]
[1723133161115,6.1914,161.52,161.33,20.0]
[1723133161319,12.85579786,161.56,161.33,20.0]
[1723133161495,12.85579786,161.56,161.36,48.35]
[1723133161704,6.1872,161.63,161.41,16.5363]
[1723133161924,6.45514968,161.62,161.42,6.177]
[1723133162225,48.35,161.68,161.42,6.177]
[1723133162226,6.1864,161.65,161.43,20.0]
[1723133162410,8.00073397,161.64,161.43,20.0]
[1723133163029,48.35,161.6,161.43,20.0]
[1723133163198,54.80328443,161.64,161.43,20.0]
[1723133163409,1.54770839,161.63,161.43,20.0]
[1723133163607,6.1887,161.59,161.43,20.0]
[1723133163811,1.54770839,161.63,161.42,6.177]
[1723133163812,6.192,161.5,161.42,6.177]
[1723133164015,48.35,161.52,161.33,21.9944]
[1723133164319,1.54873732,161.51,161.33,21.9944]
[1723133164906,6.1935,161.46,161.33,21.9944]
[1723133165104,51.1939,161.45,161.33,21.9944]
[1723133165456,46.54873732,161.51,161.33,21.9944]
[1723133165457,45.0,161.44,161.33,6.365]
[1723133165603,16.6499,161.54,161.33,6.365]
[1723133165604,48.35,161.56,161.33,6.365]
[1723133165910,6.1907,161.54,161.33,6.365]
[1723133166310,15.4755,161.55,161.33,6.365]
[1723133166728,1.54875943,161.54,161.33,6.365]
[1723133167026,6.1931,161.47,161.33,6.365]
[1723133167226,1.54883327,161.53,161.33,6.365]
[1723133167530,6.19,161.55,161.33,54.715]
[1723133167842,1.5482357,161.59,161.33,54.715]
[1723133168123,15.4696,161.61,161.33,6.365]
[1723133168498,6.1896,161.57,161.33,6.365]
[1723133168722,1.54797863,161.56,161.34,20.0]
[1723133168920,6.1893,161.57,161.34,40.0]
[1723133169137,6.1902,161.55,161.34,20.0]
[1723133169343,6.1902,161.55,161.33,6.365]
[1723133169344,48.35,161.52,161.33,6.365]
[1723133169525,1.54895537,161.51,161.33,6.365]
[1723133169720,6.1934,161.47,161.33,6.365]
[1723133169916,48.35,161.54,161.33,6.365]
[1723133170135,46.54850382,161.53,161.33,6.365]
[1723133170421,48.35,161.5,161.33,6.365]
[1723133170612,6.1933,161.47,161.33,6.365]
[1723133170842,46.54889321,161.46,161.25,6.2492]
[1723133171043,6.1962,161.39,161.25,6.2492]
[1723133171262,6.1982,161.34,161.25,6.2492]
[1723133171549,1.54990264,161.33,161.25,6.2492]
[1723133171714,1.55019654,161.32,161.25,6.2492]
[1723133171918,48.35,161.39,161.18,22.2102]
[1723133172138,46.54988101,161.38,161.18,22.2102]
[1723133172518,48.35,161.32,161.18,6.2024]
[1723133172725,46.55040349,161.31,161.18,6.2024]
[1723133172931,1.55038463,161.3,161.18,6.2024]
[1723133173139,45.0,161.31,161.18,6.2024]
[1723133173427,1.55043385,161.3,161.18,6.2024]
[1723133173823,45.0,161.31,161.18,6.2024]
[1723133174025,17.05007207,161.3,161.18,6.2024]
[1723133174226,17.05007207,161.3,161.1,1.0496537]
[1723133174227,15.5021,161.27,161.11,6.5749]
[1723133174416,48.84,161.25,161.11,6.5749]
[1723133174614,6.203,161.22,161.11,6.5749]
[1723133174844,6.2034,161.2,161.11,6.5749]
[1723133175013,48.84,161.25,161.11,6.5749]
[1723133175223,46.55111391,161.24,161.11,6.5749]
[1723133175533,1.55151526,161.23,161.11,6.5749]
[1723133175844,1.55125631,161.23,161.11,6.5749]
[1723133176046,45.0,161.24,161.11,6.5749]
[1723133176047,45.0,161.24,161.11,6.9745459]
[1723133176235,1.55109444,161.23,161.11,6.9745459]
[1723133176435,1.55109444,161.23,161.11,0.3996459]
[1723133176740,9.53348744,161.32,161.11,0.3996459]
[1723133176914,15.4942,161.35,161.11,0.3996459]
[1723133177115,6.2023,161.23,161.11,0.3996459]
[1723133177336,15.5004,161.29,161.11,0.3996459]
[1723133177623,6.2023,161.23,161.11,0.3996459]
[1723133177917,15.5004,161.29,161.11,0.3996459]
[1723133178117,15.5031,161.26,161.11,0.3996459]
[1723133178322,21.55147922,161.28,161.11,0.3996459]
[1723133178323,15.5059,161.23,161.11,0.3996459]
[1723133178527,6.2057,161.15,161.11,0.3996459]
[1723133178760,46.55208691,161.14,161.11,0.3996459]
[1723133179044,45.0,161.14,161.04,9.72545857]
[1723133179248,48.84,161.28,161.04,9.72545857]
[1723133179427,15.5003,161.29,161.06,48.84]
[1723133179626,6.2019,161.25,161.06,48.84]
[1723133179823,15.5003,161.29,161.06,48.84]
[1723133180048,6.2015,161.25,161.06,48.84]
[1723133180352,6.89759076,161.34,161.06,48.84]
[1723133180353,1.42062922,161.34,161.14,48.84]
[1723133180564,35.4922,161.41,161.15,20.0]
[1723133180565,30.9812,161.41,161.15,20.0]
[1723133180857,1.55016958,161.41,161.18,48.84]
[1723133181173,6.2994,161.51,161.26,48.84]
[1723133181452,15.4832,161.47,161.27,20.0]
[1723133181667,6.1955,161.41,161.27,20.0]
[1723133181886,6.2994,161.51,161.17,48.84]
[1723133181887,6.1973,161.36,161.17,48.84]
[1723133182044,1.55012488,161.35,161.17,48.84]
[1723133182246,95.2866,161.48,161.21,48.84]
[1723133182448,6.197,161.37,161.22,20.0]
[1723133182649,48.84,161.44,161.22,20.0]
[1723133182868,6.44425,161.47,161.22,20.0]
[1723133183072,21.92715,161.47,161.22,20.0]
[1723133183274,6.44425,161.47,161.25,48.84]
[1723133183448,6.44425,161.47,161.23,45.0]
[1723133183449,6.44425,161.47,161.3,6.5853]
[1723133183766,6.44022723,161.5,161.31,20.0]
[1723133183978,1.54884592,161.49,161.31,20.0]
[1723133184167,6.44022723,161.5,161.31,20.0]
[1723133184970,6.44022723,161.5,161.34,16.0652]
[1723133185181,6.1524,161.67,161.45,48.84]
[1723133185346,6.1844,161.7,161.46,26.1779]
[1723133185655,6.1844,161.7,161.49,48.84]
[1723133185864,6.1844,161.7,161.5,20.0]
[1723133186064,1.0246608,161.72,161.53,63.9087]
[1723133186246,7.73032168,161.71,161.54,20.0]
[1723133186443,1.54688165,161.7,161.54,20.0]
[1723133186650,50.38688165,161.7,161.46,6.1779]
[1723133186846,6.1867,161.64,161.46,6.1779]
[1723133187145,6.1865,161.65,161.47,20.0]
[1723133187346,6.1866,161.64,161.47,20.0]
[1723133187646,48.84,161.7,161.46,6.1779]
[1723133187647,1.54750282,161.63,161.46,6.1779]
[1723133187846,45.0,161.64,161.46,6.1779]
[1723133188253,51.1868,161.64,161.46,6.1779]
[1723133188445,45.0,161.64,161.46,6.1779]
[1723133188646,1.54765356,161.63,161.46,6.1779]
[1723133188844,48.84,161.62,161.37,6.1182]
[1723133189051,48.84,161.58,161.37,6.1182]
[1723133189287,46.5483361,161.61,161.37,6.1182]
[1723133189288,6.1902,161.55,161.37,6.1182]
[1723133189448,6.1881,161.6,161.38,48.84]
[1723133189645,6.1866,161.64,161.42,48.84]
[1723133189985,15.462,161.69,161.46,48.84]
[1723133190193,49.8646608,161.72,161.46,48.84]
[1723133190469,1.0246608,161.72,161.5,48.84]
[1723133190680,1.0246608,161.72,161.51,20.0]
[1723133190978,1.54691853,161.71,161.51,20.0]
[1723133191159,1.0246608,161.72,161.51,20.0]
[1723133191561,1.0246608,161.72,161.55,6.3118]
[1723133191777,1.0246608,161.72,161.56,20.0]
[1723133192452,6.1847,161.69,161.56,20.0]
[1723133192659,1.54668759,161.68,161.56,20.0]
[1723133192865,1.0246608,161.72,161.56,20.0]
[1723133193273,1.0246608,161.72,161.61,48.84]
[1723133193585,1.0246608,161.72,161.62,20.0]
[1723133193953,91.3328608,161.92,161.62,20.0]
[1723133193954,15.4428,161.89,161.65,48.84]
[1723133194279,6.44343408,161.84,161.66,20.0]
[1723133194577,6.1812,161.78,161.61,57.4707]
[1723133194778,7.72790715,161.77,161.62,20.0]
[1723133194948,6.44284251,161.83,161.62,20.0]
[1723133194949,1.54592972,161.82,161.62,20.0]
[1723133195153,64.2838,161.88,161.65,48.84]
[1723133195388,6.44061019,161.86,161.66,20.0]
[1723133195846,1.54593205,161.85,161.66,20.0]
[1723133196049,1.54593205,161.85,161.61,57.4707]
[1723133196277,6.1821,161.76,161.61,57.4707]
[1723133196477,6.44061019,161.86,161.61,57.4707]
[1723133196692,6.1805,161.8,161.61,57.4707]
[1723133196895,18.47,161.85,161.61,57.4707]
[1723133197102,64.2881,161.84,161.61,57.4707]
[1723133197301,6.182,161.76,161.61,57.4707]
[1723133197467,6.44061019,161.86,161.61,57.4707]
[1723133197674,5.94061019,161.86,161.62,20.0]
[1723133197869,5.94061019,161.86,161.67,48.84]
[1723133198110,71.3328608,161.92,161.62,20.0]
[1723133198111,1.0246608,161.92,161.72,6.1128]
[1723133198398,1.0246608,161.92,161.73,20.0]
[1723133198602,16.98629518,161.91,161.73,20.0]
[1723133198800,15.444,161.88,161.62,6.1128]
[1723133199112,65.3048608,161.92,161.63,20.0]
[1723133199271,65.3048608,161.92,161.7,48.84]
[1723133199272,6.1768,161.9,161.7,48.84]
[1723133199477,1.0246608,161.92,161.7,48.84]
[1723133199478,1.0246608,161.92,161.71,20.0]
[1723133199687,6.1774,161.88,161.71,20.0]
[1723133199867,1.0246608,161.92,161.71,20.0]
[1723133200067,1.54510367,161.87,161.66,48.84]
[1723133200281,16.99000367,161.87,161.67,20.0]
[1723133200495,15.4477,161.84,161.62,6.1128]
[1723133200797,49.8646608,161.92,161.62,6.1128]
[1723133201001,6.1781,161.87,161.68,48.84]
[1723133201189,1.0246608,161.92,161.68,48.84]
[1723133201389,1.0246608,161.92,161.72,48.84]
[1723133201573,1.0246608,161.92,161.76,48.84]
[1723133201799,1.54455804,161.91,161.76,48.84]
[1723133202015,1.0246608,161.92,161.73,6.1056]
[1723133202320,1.0246608,161.92,161.8,48.84]
[1723133202529,6.1715,162.04,161.84,48.84]
[1723133202692,6.1715,162.04,161.88,48.84]
[1723133202875,17.0314608,162.12,161.88,48.84]
[1723133202876,6.1708,162.06,161.89,20.0]
[1723133203102,17.0314608,162.12,161.89,20.0]
[1723133203328,17.0314608,162.12,161.86,6.1853]
[1723133203329,6.1757,161.93,161.86,6.1853]
[1723133203474,48.84,162.03,161.86,6.1853]
[1723133203475,1.54419618,162.02,161.86,6.1853]
[1723133203671,48.84,162.03,161.76,48.84]
[1723133203672,1.54440317,162.01,161.77,6.6427]
[1723133203976,79.6925,162.07,161.77,6.6427]
[1723133203977,6.1712,162.05,161.84,48.84]
[1723133204174,48.84,162.1,161.84,48.84]
[1723133204175,1.54346615,162.04,161.84,48.84]
[1723133204494,1.54365121,162.09,161.84,48.84]
[1723133204707,17.0314608,162.12,161.88,48.84]
[1723133204879,17.0314608,162.12,161.93,6.0704]
[1723133204880,1.54311888,162.11,161.93,6.0704]
[1723133205080,1.54293167,162.1,161.93,6.0704]
[1723133205285,1.0246608,162.12,161.96,48.84]
[1723133205499,25.8618555,162.35,161.96,48.84]
[1723133205500,15.4179,162.18,162.04,48.84]
[1723133205813,15.4179,162.18,161.96,20.0]
[1723133205814,6.168,162.13,161.96,48.84]
[1723133205984,30.8206,162.23,161.94,6.5821]
[1723133205985,6.1672,162.15,161.97,20.0]
[1723133206183,15.4143,162.19,161.97,20.0]
[1723133206701,6.1706,162.06,161.94,6.5821]
[1723133206888,6.1715,162.04,161.88,48.84]
[1723133207075,48.84,162.14,161.88,48.84]
[1723133207277,48.84,162.14,161.94,20.0]
[1723133207278,6.1687,162.11,161.94,20.0]
[1723133207502,6.1685,162.12,161.94,20.0]
[1723133207708,6.1673,162.15,161.96,48.84]
[1723133207917,15.4126,162.21,161.97,20.0]
[1723133208508,20.0,162.26,162.0,48.84]
[1723133208509,15.4076,162.26,162.0,48.84]
[1723133208717,15.4076,162.26,162.01,20.0]
[1723133208915,22.8836,162.28,162.01,20.0]
[1723133208916,15.4108,162.23,162.01,20.0]
[1723133209203,6.167,162.16,162.01,20.0]
[1723133209403,30.8157,162.26,162.01,20.0]
[1723133209612,74.4225768,162.32,162.01,20.0]
[1723133209613,0.8699148,162.32,162.04,48.84]
[1723133209820,15.403,162.31,162.05,20.0]
[1723133209995,0.8699148,162.32,162.09,6.1995]
[1723133209996,6.1622,162.28,162.09,6.1995]
[1723133210183,0.8699148,162.32,162.1,20.0]
[1723133210384,15.4052,162.29,162.1,20.0]
[1723133210785,6.1622,162.28,162.1,20.0]
[1723133211001,0.8699148,162.32,162.1,20.0]
[1723133211209,0.8699148,162.32,162.13,48.84]
[1723133211509,0.8699148,162.32,162.18,48.84]
[1723133211715,6.158,162.39,162.23,6.1995]
[1723133211897,6.1578,162.4,162.24,20.0]
[1723133212104,15.3886,162.46,162.24,20.0]
[1723133212635,15.3849,162.5,162.26,48.84]
[1723133212790,35.375,162.59,162.3,48.84]
[1723133212791,26.0775,162.55,162.3,48.84]
[1723133213108,6.1562,162.44,162.27,17.5]
[1723133213406,1.5396064,162.43,162.27,17.5]
[1723133213585,15.3874,162.48,162.27,17.5]
[1723133213789,1.53978812,162.47,162.23,6.1995]
[1723133213984,15.383,162.52,162.26,48.84]
[1723133214187,15.383,162.52,162.3,48.84]
[1723133214414,1.53927083,162.51,162.3,48.84]
[1723133214587,6.1534,162.52,162.3,48.84]
[1723133214787,15.3792,162.56,162.34,48.84]
[1723133215011,1.53903072,162.55,162.34,48.84]
[1723133215209,15.3792,162.56,162.35,20.0]
[1723133215393,6.1558,162.45,162.24,48.84]
[1723133215594,64.2226,162.53,162.25,20.0]
[1723133215922,15.3857,162.49,162.25,20.0]
[1723133216203,15.3821,162.53,162.25,20.0]
[1723133216409,16.651366,162.57,162.31,48.84]
[1723133216614,81.13876427,162.56,162.32,20.0]
[1723133216794,6.1556,162.46,162.32,20.0]
[1723133216995,6.1552,162.47,162.32,20.0]
[1723133217194,6.1569,162.42,162.25,20.0]
[1723133217396,1.53985429,162.41,162.24,48.84]
[1723133217614,1.53985429,162.41,162.23,6.1995]
[1723133217615,15.3931,162.41,162.23,6.1995]
[1723133217787,46.54054821,162.4,162.23,6.1995]
[1723133217984,1.54054855,162.39,162.23,6.1995]
[1723133218308,6.1593,162.36,162.23,6.1995]
[1723133218517,46.54043563,162.35,162.23,6.1995]
[1723133218813,45.0,162.4,162.23,6.1995]
[1723133218814,45.0,162.34,162.23,6.1995]
[1723133219019,6.1611,162.31,162.23,6.1995]
[1723133219201,45.0,162.3,162.15,6.1322]
[1723133219390,15.3946,162.4,162.16,48.84]
[1723133219711,15.398,162.36,162.16,48.84]
[1723133219919,6.1627,162.27,162.15,6.1322]
[1723133220088,1.54135765,162.26,162.05,6.1322]
[1723133220288,48.84,162.28,162.05,6.1322]
[1723133220289,60.4072,162.27,162.05,6.1322]
[1723133220505,6.1646,162.22,162.12,24.685312]
[1723133220730,45.0,162.21,161.97,6.4192]
[1723133221012,6.1662,162.18,161.97,55.2592]
[1723133221320,46.54231559,162.17,161.97,55.2592]
[1723133221493,45.0,162.21,161.97,55.2592]
[1723133221814,6.1687,162.11,161.97,6.4192]
[1723133222113,50.38259678,162.2,161.97,6.4192]
[1723133222114,45.0,162.1,161.97,6.4192]
[1723133222285,48.84,162.2,161.97,6.4192]
[1723133222487,46.5424497,162.19,161.97,6.4192]
[1723133222697,48.84,162.16,161.97,6.4192]
[1723133222996,48.84,162.12,161.88,6.0698]
[1723133223190,6.00913772,162.15,161.88,6.0698]
[1723133223405,45.0,162.11,161.92,48.84]
[1723133223919,1.54344291,162.1,161.88,54.9098]
[1723133224224,6.00913772,162.09,161.97,48.84]
[1723133224395,1.54230738,162.24,161.97,48.84]
[1723133224593,20.0,162.24,161.97,48.84]
[1723133224791,15.4126,162.21,161.97,48.84]
[1723133225005,1.42062922,162.24,161.97,48.84]
[1723133225213,1.42062922,162.24,162.06,6.5557]
[1723133225407,1.42062922,162.24,162.07,20.0]
[1723133225613,1.54186761,162.23,162.07,20.0]
[1723133225796,6.1662,162.18,162.01,64.0689]
[1723133225996,1.54235793,162.17,162.02,20.0]
[1723133226221,15.4096,162.24,162.02,20.0]
[1723133226608,15.4128,162.21,162.02,20.0]
[1723133226813,46.54276591,162.2,161.98,20.0]
[1723133227020,6.1683,162.12,161.98,20.0]
[1723133227224,46.5430351,162.11,161.97,6.5527]
[1723133227527,1.54306298,162.1,161.97,6.5527]
[1723133227711,45.0,162.11,161.97,6.5527]
[1723133227916,45.0,162.12,162.02,48.84]
[1723133228117,46.2122,162.3,162.06,48.84]
[1723133228428,30.7979,162.35,162.02,48.84]
[1723133228429,15.3998,162.34,162.1,48.84]
[1723133228741,6.1626,162.27,162.08,48.84]
[1723133228910,6.1622,162.28,162.08,48.84]
[1723133229100,6.1622,162.28,162.12,48.84]
[1723133229301,6.1622,162.28,162.13,20.0]
[1723133229537,16.157,162.37,162.16,48.84]
[1723133229727,6.1583,162.39,162.2,48.84]
[1723133229911,6.1569,162.42,162.24,48.84]
[1723133230109,15.8927,162.46,162.25,20.0]
[1723133230314,6.1576,162.4,162.25,20.0]
[1723133230643,1.54043984,162.39,162.2,48.84]
[1723133230930,6.1595,162.35,162.21,20.0]
[1723133231136,6.1598,162.35,162.21,20.0]
[1723133231445,1.5407533,162.34,162.16,48.84]
[1723133231778,16.9406533,162.34,162.14,6.4495]
[1723133232031,50.7812,162.44,162.14,6.4495]
[1723133232032,6.159,162.37,162.16,48.84]
[1723133232238,15.3924,162.42,162.2,48.84]
[1723133232409,15.3924,162.42,162.16,48.84]
[1723133232605,21.5405895,162.41,162.16,48.84]
[1723133232802,6.1587,162.37,162.16,48.84]
[1723133233104,1.54064421,162.36,162.16,48.84]
[1723133233311,16.9326229,162.43,162.17,20.0]
[1723133233504,15.3973,162.37,162.14,6.4495]
[1723133233711,6.1625,162.28,162.14,6.4495]
[1723133233908,1.54149722,162.27,162.14,6.4495]
[1723133234228,1.54170736,162.26,162.05,48.84]
[1723133234423,6.1647,162.22,162.04,6.2886]
[1723133234608,1.54170736,162.26,162.04,6.2886]
[1723133234609,45.0,162.21,162.04,6.2886]
[1723133234961,1.54175576,162.2,162.04,6.2886]
[1723133235252,1.5425286,162.2,162.0,16.6553]
[1723133235531,16.9561286,162.2,161.96,6.6393]
[1723133235732,20.0,162.17,161.96,6.6393]
[1723133236042,20.0,162.17,161.92,65.4853]
[1723133236043,6.1684,162.12,161.92,48.84]
[1723133236238,6.1678,162.14,161.92,48.84]
[1723133236542,45.0,162.11,161.96,48.84]
[1723133236913,45.0,162.11,162.0,48.84]
[1723133237133,20.0,162.25,162.04,48.84]
[1723133237342,15.4126,162.21,161.96,48.84]
[1723133237516,20.0,162.2,161.92,48.84]
[1723133237714,20.0,162.2,161.88,55.3943]
[1723133237715,6.1722,162.02,161.88,55.3943]
[1723133237943,1.42062922,162.19,161.97,48.84]
[1723133238176,6.1672,162.15,161.98,1.23282332]
[1723133238443,64.4873,162.27,162.01,48.84]
[1723133238653,6.1635,162.25,162.02,1.23370874]
[1723133238936,15.6473,162.27,162.05,48.84]
[1723133239138,2.29676337,162.35,162.03,6.1546]